{"text_format":"3","workbook":"xlsx","n_sheets":1,"sheets":["Grundbuchkosten-Allgemein"],"not_rendered":{"defined_names":1,"comments":1},"read":"whole","date_system":"1900"}

{"sheet":"Grundbuchkosten-Allgemein","index":0,"n_rows":44,"n_cols":5,"rows_kept":44,"merged":[[1,0,1,4],[38,0,38,4],[40,0,40,4],[41,0,41,4],[42,0,42,4],[43,0,43,4]]}
["Berechnungsprogramm für \nGerichtskosten in Grundbuchsachen",{"$nulls":3},"Allgemein"]
["Tipp:\nDie auszufüllenden Zellen können Sie sowohl mit der Tabulator-Taste (Tab) als auch per Mausklick ansteuern. Diese Zellen sind zudem farblich gekennzeichnet, die übrigen geschützt. Wenn Sie zur Bearbeitung freigegebene Zellen auswählen, bekommen Sie weitere Ausfüllhinweise."]
[]
["©",null," © C.Heitmann c/o AG Dorsten"]
["Gebührentatbestand und Hinweis\nauf die angewendete Vorschrift","Gebühren-satz","Wert bzw. Anzahl",null,"Betrag"]
["Gebühr für die Eigentumsumschreibung\nKV 14110",1,null,{"$f":"(IF(AND(C6>=0,C6<=500),15,0))\n+(IF(AND(C6>500,C6<=2000),ROUNDUP((C6-500)/500,0)*4+15,0))\n+(IF(AND(C6>2000,C6<=10000),ROUNDUP((C6-2000)/1000,0)*6+27,0))\n+(IF(AND(C6>10000,C6<=25000),ROUNDUP((C6-10000)/3000,0)*8+75,0))\n+(IF(AND(C6>25000,C6<=50000),ROUNDUP((C6-25000)/5000,0)*10+115,0))\n+(IF(AND(C6>50000,C6<=200000),ROUNDUP((C6-50000)/15000,0)*27+165,0))\n+(IF(AND(C6>200000,C6<=500000),ROUNDUP((C6-200000)/30000,0)*50+435,0))\n+(IF(AND(C6>500000,C6<=5000000),ROUNDUP((C6-500000)/50000,0)*80+935,0))\n+(IF(AND(C6>5000000,C6<=10000000),ROUNDUP((C6-5000000)/200000,0)*130+8135,0))\n+(IF(AND(C6>10000000,C6<=20000000),ROUNDUP((C6-10000000)/250000,0)*150+11385,0))\n+(IF(AND(C6>20000000,C6<=30000000),ROUNDUP((C6-20000000)/500000,0)*280+17385,0))\n+(IF(AND(C6>30000000,C6<=60000000),ROUNDUP((C6-30000000)/1000000,0)*120+22985,0))\n+(IF(C6>60000000,((60000000-30000000)/1000000)*120+22985,0))","v":{"v":15,"d":"15.00 €"}},{"$f":"IF((ISBLANK(C6)=TRUE),0,(IF(D6*B6<=15,15,D6*B6)))","v":{"v":0,"d":"0.00 €"}}]
["Gebühr für die Grundbuchberichtigung von Amts wegen gemäß § 82a GBO,\nKV 14111",2,null,{"$f":"(IF(AND(C7>=0,C7<=500),15,0))\n+(IF(AND(C7>500,C7<=2000),ROUNDUP((C7-500)/500,0)*4+15,0))\n+(IF(AND(C7>2000,C7<=10000),ROUNDUP((C7-2000)/1000,0)*6+27,0))\n+(IF(AND(C7>10000,C7<=25000),ROUNDUP((C7-10000)/3000,0)*8+75,0))\n+(IF(AND(C7>25000,C7<=50000),ROUNDUP((C7-25000)/5000,0)*10+115,0))\n+(IF(AND(C7>50000,C7<=200000),ROUNDUP((C7-50000)/15000,0)*27+165,0))\n+(IF(AND(C7>200000,C7<=500000),ROUNDUP((C7-200000)/30000,0)*50+435,0))\n+(IF(AND(C7>500000,C7<=5000000),ROUNDUP((C7-500000)/50000,0)*80+935,0))\n+(IF(AND(C7>5000000,C7<=10000000),ROUNDUP((C7-5000000)/200000,0)*130+8135,0))\n+(IF(AND(C7>10000000,C7<=20000000),ROUNDUP((C7-10000000)/250000,0)*150+11385,0))\n+(IF(AND(C7>20000000,C7<=30000000),ROUNDUP((C7-20000000)/500000,0)*280+17385,0))\n+(IF(AND(C7>30000000,C7<=60000000),ROUNDUP((C7-30000000)/1000000,0)*120+22985,0))\n+(IF(C7>60000000,((60000000-30000000)/1000000)*120+22985,0))","v":{"v":15,"d":"15.00 €"}},{"$f":"IF((ISBLANK(C7)=TRUE),0,(IF(D7*B7<=15,15,D7*B7)))","v":{"v":0,"d":"0.00 €"}}]
["Gebühr für die Einräumung von Sondereigentum gemäß § 3 WEG oder § 8 WEG,\nKV 14112",1,null,{"v":15,"d":"15.00 €"},{"v":0,"d":"0.00 €"}]
["Gebühr für die Eintragung einer Belastung in Abt. II \n(z.B. Altenteil, Dienstbarkeit, Dauerwohn- oder Dauernutzungsrecht, Dauerwohnrecht, Erbbaurecht, Erbbauzinsreallast, Reallast, Vorkaufsrecht),\nKV 14121",{"$f":"IF(OR(ISBLANK(C10),C10<2),1,(1+B10))","v":1},null,{"v":15,"d":"15.00 €"},{"v":0,"d":"0.00 €"}]
["Nur für den (Ausnahme-)Fall, dass das vorstehende inhaltsgleiche Recht nicht nur bei einem Amtsgericht (Grundbuchamt) eingetragen werden soll. Die Erhöhungsgebühr wird zur obigen Gebühr hinzugerechnet.\nGebühr für die Eintragung eines Gesamtrechts bei mehreren Grundbuchämtern - Erhöhungsgebühr ab dem zweiten Grundbuchamt für jedes weitere,\nKV 14122",{"$f":"(C10*0.2)-0.2","v":-0.2}]
["Gebühr für die Eintragung eines Briefgrundpfandrechts (Grundschuld oder Hypothek unter Erteilung eines Briefs),\nKV 14120",{"$f":"IF(OR(ISBLANK(C12),C12<2),1.3,(1.3+B12))","v":1.3},null,{"v":15,"d":"15.00 €"},{"v":0,"d":"0.00 €"}]
["Nur für den (Ausnahme-)Fall, dass das vorstehende Briefgrundpfandrecht nicht nur bei einem Amtsgericht (Grundbuchamt) eingetragen werden soll. Die Erhöhungsgebühr wird zur obigen Gebühr hinzugerechnet.\nGebühr für die Eintragung eines Gesamtgrundpfandrechts bei mehreren Grundbuchämtern - Erhöhungsgebühr ab dem zweiten Grundbuchamt für jedes weitere,\nKV 14122",{"$f":"(C12*0.2)-0.2","v":-0.2}]
["Gebühr für die Eintragung eines brieflosen Grundpfandrechts \n(Grundschuld oder Hypothek ohne Brief),\nKV 14121",{"$f":"IF(OR(ISBLANK(C14),C14<2),1,(1+B14))","v":1},null,{"v":15,"d":"15.00 €"},{"v":0,"d":"0.00 €"}]
["Nur für den (Ausnahme-)Fall, dass das vorstehende brieflose Grundpfandrecht nicht nur bei einem Amtsgericht (Grundbuchamt) eingetragen werden soll. Die Erhöhungsgebühr wird zur obigen Gebühr hinzugerechnet.\nGebühr für die Eintragung eines Gesamtgrundpfandrechts bei mehreren Grundbuchämtern - Erhöhungsgebühr ab dem zweiten Grundbuchamt für jedes weitere,\nKV 14122",{"$f":"(C14*0.2)-0.2","v":-0.2}]
["Gebühr für die Eintragung einer Nachverpfändung weiteren Grundbesitzes mit einem bereits eingetragenen Grundpfandrecht,\nKV 14123",0.5,null,{"v":15,"d":"15.00 €"},{"v":0,"d":"0.00 €"}]
["Gebühr für die nachträgliche Brieferteilung, Teilbriefbildung oder Erteilung eines neuen Briefs,\nKV 14124",0.5,null,{"v":15,"d":"15.00 €"},{"v":0,"d":"0.00 €"}]
["Gebühr für die Ergänzung des Inhalts eines Grundpfandrechtsbriefs,\nKV 14125","Festgeb.\n25,00 €",null,null,{"$f":"IF((ISBLANK(C17)=TRUE),0,C17*25)","v":{"v":0,"d":"0.00 €"}}]
["Gebühr für die Eintragung der Veränderung einer Belastung (Abtretung, Gesamtrechtsverteilung, Inhaltsänderung, Löschungsvormerkung, Rangänderung),\nKV 14130",{"$f":"IF(OR(ISBLANK(C19),C19<2),0.5,(0.5+B19))","v":0.5},null,{"v":15,"d":"15.00 €"},{"v":0,"d":"0.00 €"}]
["Nur für den (Ausnahme-)Fall, dass das vorstehende Recht nicht nur bei einem Amtsgericht (Grundbuchamt) verändert werden soll. Die Erhöhungsgebühr wird zur obigen Gebühr hinzugerechnet.\nGebühr für die Eintragung der Veränderung einer Belastung (Abtretung, Gesamtrechtsverteilung, Inhaltsänderung, Löschungsvormerkung, Rangänderung) bei mehreren Grundbuchämtern - Erhöhungsgebühr ab dem zweiten Grundbuchamt für jedes weitere,\nKV 14131",{"$f":"(C19*0.1)-0.1","v":-0.1}]
["Gebühr für die Löschung in Abteilung III \n(= Löschung eines Grundpfandrechts),\nKV 14140",{"$f":"IF(OR(ISBLANK(C21),C21<2),0.5,(0.5+B21))","v":0.5},null,{"v":15,"d":"15.00 €"},{"$f":"IF((ISBLANK(C20)=TRUE),0,(IF(D20*B20<=15,15,D20*B20)))","v":{"v":0,"d":"0.00 €"}}]
["Nur für den (Ausnahme-)Fall, dass das vorstehende Grundpfandrecht nicht nur bei einem Amtsgericht (Grundbuchamt) gelöscht werden soll. Die Erhöhungsgebühr wird zur obigen Gebühr hinzugerechnet.\nGebühr für die Löschung in Abteilung III \n(= Löschung eines Grundpfandrechts)  bei mehreren Grundbuchämtern - Erhöhungsgebühr ab dem zweiten Grundbuchamt für jedes weitere,\nKV 14141",{"$f":"(C21*0.1)-0.1","v":-0.1}]
["Gebühr für die Eintragung der Entlassung aus der Mithaft,\nKV 14142",0.3,null,{"v":15,"d":"15.00 €"},{"v":0,"d":"0.00 €"}]
["Gebühr für die Löschung in Abteilung II (z.B. Altenteil, Dienstbarkeit, Dauerwohn- oder Dauernutzungsrecht, Dauerwohnrecht, Erbbaurecht, Erbbauzinsreallast, Reallast, Vorkaufsrecht),\nKV 14143","Festgeb.\n25,00 €",null,null,{"$f":"IF((ISBLANK(C23)=TRUE),0,C23*25)","v":{"v":0,"d":"0.00 €"}}]
["Gebühr für die Eintragung einer Vormerkung,\nKV 14150",0.5,null,{"v":15,"d":"15.00 €"},{"v":0,"d":"0.00 €"}]
["Gebühr für die Eintragung eines Widerspruchs,\nKV 14151","Festgeb.\n50,00 €",null,null,{"$f":"IF((ISBLANK(C25)=TRUE),0,C25*50)","v":{"v":0,"d":"0.00 €"}}]
["Gebühr für die Löschung einer Vormerkung,\nKV 14152","Festgeb.\n25,00 €",null,null,{"$f":"IF((ISBLANK(C26)=TRUE),0,C26*25)","v":{"v":0,"d":"0.00 €"}}]
["Gebühr für die Eintragung eines Herrschvermerks gemäß § 9 GBO,\nKV 14160 Ziff. 1","Festgeb.\n50,00 €",null,null,{"$f":"IF((ISBLANK(C27)=TRUE),0,C27*50)","v":{"v":0,"d":"0.00 €"}}]
["Gebühr für die Eintragung einer Teilung ohne Eigentumsübergang,\nKV 14160 Ziff. 2","Festgeb.\n50,00 €",null,null,{"$f":"IF((ISBLANK(C28)=TRUE),0,C28*50)","v":{"v":0,"d":"0.00 €"}}]
["Gebühr für die Eintragung einer Vereinigung oder Zuschreibung ohne Eigentumsübergang,\nKV 14160 Ziff. 3","Festgeb.\n50,00 €",null,null,{"$f":"IF((ISBLANK(C29)=TRUE),0,C29*50)","v":{"v":0,"d":"0.00 €"}}]
["Gebühr für die Eintragung einer Belastung nach § 1010 BGB,\nKV 14160 Ziff. 4","Festgeb.\n50,00 €",null,null,{"$f":"IF((ISBLANK(C30)=TRUE),0,C30*50)","v":{"v":0,"d":"0.00 €"}}]
["Gebühr für die Eintragung einer Inhaltsänderung oder Aufhebung von Sondereigentum (pro betroffenes Sondereigentum),\nKV 14160 Ziff. 5","Festgeb.\n50,00 €",null,null,{"$f":"IF((ISBLANK(C31)=TRUE),0,C31*50)","v":{"v":0,"d":"0.00 €"}}]
["Gebühr für die Erteilung eines Grundbuchausdrucks,\nKV 17000","pro GB:\n10,00 €",null,null,{"$f":"IF((ISBLANK(C32)=TRUE),0,C32*10)","v":{"v":0,"d":"0.00 €"}}]
["Gebühr für die Erteilung eines amtlichen Grundbuchausdrucks,\nKV 17001","pro GB:\n20,00 €",null,null,{"$f":"IF((ISBLANK(C33)=TRUE),0,C33*20)","v":{"v":0,"d":"0.00 €"}}]
["Gebühr für die Erteilung eines Zeugnisses des Grundbuchamtes,\nKV 17004","Festgeb.\n20,00 €",null,null,{"$f":"IF((ISBLANK(C34)=TRUE),0,C34*20)","v":{"v":0,"d":"0.00 €"}}]
["Dokumentenpauschale, \n- für die ersten 50 Seiten je Seite: 0,50 €\n- für jede weitere Seite: 0,15 €,\nKV 31000",{"$nulls":3},{"$f":"IF((C35>50),(((C35-50)*0.15)+25),(C35*0.5))","v":{"v":0,"d":"0.00 €"}}]
["(Stand: 08.09.2015) - V 1.1",{"$nulls":3},{"$f":"SUM(E6:E35)","v":{"v":0,"d":"0.00 €"}}]
[]
[]
["Achtung!\n\nBei dem hier kalkulierten Betrag handelt es sich ausschließlich um die voraussichtlich entstehenden Kosten, die Ihnen durch das Grundbuchamt (Amtsgericht) in Rechnung gestellt werden. \n\nHinzu kommen noch die Kosten für die Tätigkeit einer Notarin oder eines Notars \n(siehe z.B. Bundesnotarkammer: www.bundesnotarkammer.de). \nZudem sollten Sie weitere Nebenkosten wie z.B. zusätzliche Kreditkosten und Maklercourtage berücksichtigen.\n\nNähere Informationen zum Ablauf des Grundbuchverfahrens erhalten Sie im Justizportal des Landes Nordrhein-Westfalen (www.justiz.nrw.de) oder in den Webauftritten der Amtsgerichte."]
[]
["Wichtiger Hinweis:"]
["Beachten Sie bitte, dass hier nur Standardberechnungen angeboten werden können. \nFür die Richtigkeit und Vollständigkeit kann - wegen der Unterschiedlichkeit jedes Einzelfalles - keine Gewährleistung übernommen werden. Es ist nicht möglich, auf diesem Weg alle denkbaren Besonderheiten, die den Einzelfall betreffen können, darzustellen. "]
["Die Berechnung der Gerichtskosten in Grundbuchsachen basiert auf dem Gesetz über Kosten der freiwilligen Gerichtsbarkeit für Gerichte und Notare (Gerichts- und Notarkostengesetz - GNotKG) vom 23.07.2013 (BGBl. I S. 2586). Den Bürgerzugang zum Bundesgesetzblatt online erreichen Sie über die Internetadresse www.bgbl.de/Xaver/start.xav?startbk=Bundesanzeiger_BGBl "]
["Den aktuellen Gesetzestext können Sie auch über das Portal \"Gesetze im Internet\"  www.gesetze-im-internet.de nachlesen Das Bundesministerium der Justiz und für Verbraucherschutz stellt in diesem gemeinsamen Projekt mit der juris GmbH für interessierte Bürgerinnen und Bürger nahezu das gesamte aktuelle Bundesrecht kostenlos im Internet bereit. Die Gesetze und Rechtsverordnungen können in ihrer geltenden Fassung abgerufen werden. Sie werden durch die Dokumentationsstelle im Bundesamt für Justiz fortlaufend konsolidiert.\n\nDas Justizministerium des Landes Nordrhein-Westfalen stellt Ihnen im Justizportal im Bereich Bibliothek http://www.justiz.nrw.de/Bibliothek/index.php unter anderem die Online-Datenbank Gesetze des Bundes und der Länder zur kostenfreien Recherche zur Verfügung."]